Workbook

Sheet Lists (hidden)
A1: Lists used on other sheets… | D1: Year of Meet: | E1: 2018 | H1: Meet Name: | I1: 2018 Can-Am Personal Best
H2: Meet Dates: | I2: April 6-8, 2018
A3: Note: | B3: PROTECT & HIDE this sheet normally, | H3: Entry Deadline: | I3: Mon. March 5, 2018
B4: especially before sending the file to clubs. | H4: Late Entrry Fee: | I4: 40
B6: FEES: | C6: Basic Fee | H6: Host Name: | I6: Can-Am Gymnastics Club
B7: Level | C7: $/gymnast | D7: # gymnasts | H7: Host Addr: | I7: 3702 Mitchelmore Ave.
A8: WAG | B8: WAG: Development, Masters | D8: =COUNTIF('WAG Gymnasts'!$M$5:$M$64,$E8) -> 0 | E8: ~ | H8: Host City: | I8: Saskatoon, SK
A9: WAG | B9: Jr. Olympic 1-2 | C9: 60 | D9: =COUNTIF('WAG Gymnasts'!$M$5:$M$64,$E9) -> 0 | E9: 1 | H9: Host Postal Code: | I9: S7P 0B9
A10: WAG | B10: Jr. Olympic 3-7 | C10: 90 | D10: =COUNTIF('WAG Gymnasts'!$M$5:$M$64,$E10) -> 0 | E10: 2 | H10: Host Phone #: | I10: (306) 931-4031
A11: WAG | B11: Jr. Olympic 8-10 | C11: 90 | D11: =COUNTIF('WAG Gymnasts'!$M$5:$M$64,$E11) -> 0 | E11: 3
A12: WAG | B12: Aspire 1-2 | C12: 90 | D12: =COUNTIF('WAG Gymnasts'!$M$5:$M$64,$E12) -> 0 | E12: 4
A13: WAG | B13: H.P. (3-4 Events) | C13: 90 | D13: =COUNTIF('WAG Gymnasts'!$M$5:$M$64,$E13) -> 0 | E13: 5
A14: WAG | B14: H.P. (1-2 Events) | C14: 45 | D14: =COUNTIF('WAG Gymnasts'!$M$5:$M$64,$E14) -> 0 | E14: 6
A15: WAG | B15: ~ | C15: ~ | D15: ~ | E15: 7
A16: WAG | B16: Registered for Western Trials | C16: 20 | D16: =COUNTIF(WAG_Westerns_Trials,"Yes") -> 0 | E16: 8
A17: WAG | B17: Registered for National Trials | C17: 20 | D17: =COUNTIF(WAG_Natls_Trials,"Yes") -> 0 | E17: 9 | I17: List of Months | J17: Yes No Reply
A18: MAG | B18: MAG: Developmental | C18: 0 | D18: =COUNTIF('MAG Gymnasts'!$N$5:$N$64,$E18) -> 0 | E18: 1 | H18: 1 | I18: Jan | J18: Yes
A19: MAG | B19: MAG: Interclub: JO-1, JO-2 | C19: 0 | D19: =COUNTIF('MAG Gymnasts'!$N$5:$N$64,$E19) -> 0 | E19: 2 | H19: 2 | I19: Feb | J19: No
A20: MAG | B20: MAG: Prov: JO 3-4 | C20: 0 | D20: =COUNTIF('MAG Gymnasts'!$N$5:$N$64,$E20) -> 0 | E20: 3 | H20: 3 | I20: Mar
A21: MAG | B21: MAG: Prov: P4 - P5 | C21: 0 | D21: =COUNTIF('MAG Gymnasts'!$N$5:$N$64,$E21) -> 0 | E21: 4 | H21: 4 | I21: Apr
A22: MAG | B22: MAG: Nat'l: Elite 3-4 | C22: 0 | D22: =COUNTIF('MAG Gymnasts'!$N$5:$N$64,$E22) -> 0 | E22: 5 | H22: 5 | I22: May
A23: MAG | B23: MAG: Nat'l: Open, Jr, Sr | C23: 0 | D23: =COUNTIF('MAG Gymnasts'!$N$5:$N$64,$E23) -> 0 | E23: 6 | H23: 6 | I23: Jun
H24: 7 | I24: Jul
B25: Note: when fee is $0, that row is greyed out | H25: 8 | I25: Aug
B26: on the 'Summary' sheet for fees. | H26: 9 | I26: Sep
H27: 10 | I27: Oct
B28: The summary sheet will use these labels too. | H28: 11 | I28: Nov
H29: 12 | I29: Dec
Q30: Note: Change these age groups within the categories as needed - see Gym Sask guide in November each year for the following season.
M31: Year of Competition: | N31: =Year_of_Meet -> 2018 | O31: ** Ages shown are as of end of previous year (aka the start of this year).
L32: Code for | N32: Year Born: | O32: =N31-4 -> 2014 | P32: =O32-1 -> 2013 | Q32: =P32-1 -> 2012 | R32: =Q32-1 -> 2011 | S32: 2010 | T32: 2009 | U32: 2008 | V32: 2007 | W32: 2006 | X32: 2005 | Y32: 2004 | Z32: 2003 | AA32: 2002 | AB32: 2001 | AC32: 2000 | AD32: 1999 | AE32: 1998 | AF32: =AE32-1 -> 1997 | AG32: =AF32-1 -> 1996 | AH32: =AG32-1 -> 1995 | AI32: =AH32-1 -> 1994 | AJ32: =AI32-1 -> 1993 | AK32: =AJ32-1 -> 1992 | AL32: =AK32-1 -> 1991 | AM32: =AL32-1 -> 1990
J33: . | L33: Fees Level | M33: WAG_Categories | N33: ="Age at start of " &$N$31&":" -> Age at start of 2018: | O33: =$N$31-O32-1 -> 3 | P33: =O33+1 -> 4 | Q33: =P33+1 -> 5 | R33: 6 | S33: 7 | T33: 8 | U33: 9 | V33: 10 | W33: 11 | X33: 12 | Y33: 13 | Z33: 14 | AA33: 15 | AB33: 16 | AC33: 17 | AD33: 18 | AE33: 19 | AF33: =AE33+1 -> 20 | AG33: =AF33+1 -> 21 | AH33: =AG33+1 -> 22 | AI33: =AH33+1 -> 23 | AJ33: =AI33+1 -> 24 | AK33: =AJ33+1 -> 25 | AL33: =AK33+1 -> 26 | AM33: =AL33+1 -> 27
J34: JO-1 | K34: 3 | L34: 0 | M34: Interclub: | N34: Masters | O34: X | P34: X | Q34: X | R34: X | S34: X | T34: X | U34: X | V34: X | W34: X | X34: X | Y34: X | Z34: X | AA34: X
J35: JO-2 | K35: 4 | L35: 0 | M35: Interclub: | N35: Developmental | U35: X | V35: X | W35: X | X35: X | Y35: X | Z35: X | AA35: X | AB35: X | AC35: X | AD35: X | AE35: X | AF35: X | AG35: X | AH35: X | AI35: X | AJ35: X | AK35: X | AL35: X | AM35: X
J36: ~ | K36: 5 | L36: 1 | M36: Interclub: | N36: JO-1 | O36: X | P36: X | Q36: X
J37: JO-3 | K37: 6 | L37: 1 | M37: Interclub: | N37: JO-2 | O37: X | P37: X | Q37: X
J38: JO-4 | K38: 7 | L38: 99 | M38: ~ | N38: ~
J39: JO-5 | K39: 8 | L39: 2 | M39: Provincial: | N39: JO-3 | O39: X | P39: X | Q39: X | R39: X | S39: 2009-2010 | T39: 2009-2010 | U39: 2008 | V39: 2007 | W39: 2005-2006 | X39: 2005-2006 | Y39: 2004 & before | Z39: 2004 & before | AA39: 2004 & before | AB39: 2004 & before | AC39: 2004 & before | AD39: 2004 & before | AE39: 2004 & before | AF39: 2004 & before | AG39: 2004 & before | AH39: 2004 & before | AI39: 2004 & before | AJ39: 2004 & before | AK39: 2004 & before | AL39: 2004 & before | AM39: 2004 & before
J40: JO-6 | K40: 9 | L40: 2 | M40: Provincial: | N40: JO-4 | O40: X | P40: X | Q40: X | R40: X | S40: X | T40: 2008-2009 | U40: 2008-2009 | V40: 2007 & before | W40: 2007 & before | X40: 2007 & before | Y40: 2007 & before | Z40: 2007 & before | AA40: 2007 & before | AB40: 2007 & before | AC40: 2007 & before | AD40: 2007 & before | AE40: 2007 & before | AF40: 2007 & before | AG40: 2007 & before | AH40: 2007 & before | AI40: 2007 & before | AJ40: 2007 & before | AK40: 2007 & before | AL40: 2007 & before | AM40: 2007 & before
J41: JO-7 | K41: 10 | L41: 2 | M41: Provincial: | N41: JO-5 | O41: X | P41: X | Q41: X | R41: X | S41: X | T41: 2009 & before | U41: 2009 & before | V41: 2009 & before | W41: 2009 & before | X41: 2009 & before | Y41: 2009 & before | Z41: 2009 & before | AA41: 2009 & before | AB41: 2009 & before | AC41: 2009 & before | AD41: 2009 & before | AE41: 2009 & before | AF41: 2009 & before | AG41: 2009 & before | AH41: 2009 & before | AI41: 2009 & before | AJ41: 2009 & before | AK41: 2009 & before | AL41: 2009 & before | AM41: 2009 & before
J42: ~ | K42: 11 | L42: 2 | M42: Provincial: | N42: JO-6 | O42: X | P42: X | Q42: X | R42: X | S42: X | T42: 2007-2009 | U42: 2007-2009 | V42: 2007-2009 | W42: 2005-2006 | X42: 2005-2006 | Y42: 2004 & before | Z42: 2004 & before | AA42: 2004 & before | AB42: 2004 & before | AC42: 2004 & before | AD42: 2004 & before | AE42: 2004 & before | AF42: 2004 & before | AG42: 2004 & before | AH42: 2004 & before | AI42: 2004 & before | AJ42: 2004 & before | AK42: 2004 & before | AL42: 2004 & before | AM42: 2004 & before
J43: JO-8 | K43: 12 | L43: 2 | M43: Provincial: | N43: JO-7 | O43: X | P43: X | Q43: X | R43: X | S43: X | T43: X | U43: 2006-2008 | V43: 2006-2008 | W43: 2006-2008 | X43: 2005 & before | Y43: 2005 & before | Z43: 2005 & before | AA43: 2005 & before | AB43: 2005 & before | AC43: 2005 & before | AD43: 2005 & before | AE43: 2005 & before | AF43: 2005 & before | AG43: 2005 & before | AH43: 2005 & before | AI43: 2005 & before | AJ43: 2005 & before | AK43: 2005 & before | AL43: 2005 & before | AM43: 2005 & before
J44: JO-9 | K44: 13 | L44: 99 | M44: ~ | N44: ~
J45: JO-10 | K45: 14 | L45: 3 | M45: Provincial: | N45: JO-8 | O45: X | P45: X | Q45: X | R45: X | S45: X | T45: X | U45: 2006-2008 | V45: 2006-2008 | W45: 2006-2008 | X45: 2005 & before | Y45: 2005 & before | Z45: 2005 & before | AA45: 2005 & before | AB45: 2005 & before | AC45: 2005 & before | AD45: 2005 & before | AE45: 2005 & before | AF45: 2005 & before | AG45: 2005 & before | AH45: 2005 & before | AI45: 2005 & before | AJ45: 2005 & before | AK45: 2005 & before | AL45: 2005 & before | AM45: 2005 & before
J46: Aspire 1 | K46: 15 | L46: 3 | M46: Provincial: | N46: JO-9 | O46: X | P46: X | Q46: X | R46: X | S46: X | T46: X | U46: X | V46: 2005-2007 | W46: 2005-2007 | X46: 2005-2009 | Y46: 2004 & before | Z46: 2004 & before | AA46: 2004 & before | AB46: 2004 & before | AC46: 2004 & before | AD46: 2004 & before | AE46: 2004 & before | AF46: 2004 & before | AG46: 2004 & before | AH46: 2004 & before | AI46: 2004 & before | AJ46: 2004 & before | AK46: 2004 & before | AL46: 2004 & before | AM46: 2004 & before
J47: Aspire 2 | K47: 16 | L47: 3 | M47: Provincial: | N47: JO-10 | O47: X | P47: X | Q47: X | R47: X | S47: X | T47: X | U47: X | V47: X | W47: 2003-2006 | X47: 2003-2006 | Y47: 2003-2006 | Z47: 2003-2006 | AA47: 2002 & before | AB47: 2002 & before | AC47: 2002 & before | AD47: 2002 & before | AE47: 2002 & before | AF47: 2002 & before | AG47: 2002 & before | AH47: 2002 & before | AI47: 2002 & before | AJ47: 2002 & before | AK47: 2002 & before | AL47: 2002 & before | AM47: 2002 & before
J48: ~ | K48: 17 | L48: 4 | M48: Aspire: | N48: Aspire 1 | O48: X | P48: X | Q48: X | R48: X | S48: X | W48: X | X48: X | Y48: X | Z48: X | AA48: X | AB48: X | AC48: X | AD48: X | AE48: X | AF48: X | AG48: X | AH48: X | AI48: X | AJ48: X | AK48: X | AL48: X | AM48: X
J49: HP Novice (3-4 events) | K49: 18 | L49: 4 | M49: Aspire: | N49: Aspire 2 | O49: X | P49: X | Q49: X | R49: X | S49: X | T49: X | W49: X | X49: X | Y49: X | Z49: X | AA49: X | AB49: X | AC49: X | AD49: X | AE49: X | AF49: X | AG49: X | AH49: X | AI49: X | AJ49: X | AK49: X | AL49: X | AM49: X
J50: HP Junior (3-4 events) | K50: 19 | L50: 99 | M50: ~ | N50: ~
J51: HP Senior (3-4 events) | K51: 20 | L51: 5 | M51: National: | N51: HP Novice (3-4 events) | O51: X | P51: X | Q51: X | R51: X | S51: X | T51: X | U51: X | Y51: X | Z51: X | AA51: X | AB51: X | AC51: X | AD51: X | AE51: X | AF51: X | AG51: X | AH51: X | AI51: X | AJ51: X | AK51: X | AL51: X | AM51: X
J52: HP Novice (1-2 events) | K52: 21 | L52: 5 | M52: National: | N52: HP Junior (3-4 events) | O52: X | P52: X | Q52: X | R52: X | S52: X | T52: X | U52: X | V52: X | AA52: X | AB52: X | AC52: X | AD52: X | AE52: X | AF52: X | AG52: X | AH52: X | AI52: X | AJ52: X | AK52: X | AL52: X | AM52: X
J53: HP Junior (1-2 events) | K53: 22 | L53: 5 | M53: National: | N53: HP Senior (3-4 events) | O53: X | P53: X | Q53: X | R53: X | S53: X | T53: X | U53: X | V53: X | W53: X | X53: X
J54: HP Senior (1-2 events) | K54: 23 | L54: 6 | M54: National: | N54: HP Novice (1-2 events) | O54: X | P54: X | Q54: X | R54: X | S54: X | T54: X | U54: X | Y54: X | Z54: X | AA54: X | AB54: X | AC54: X | AD54: X | AE54: X | AF54: X | AG54: X | AH54: X | AI54: X | AJ54: X | AK54: X | AL54: X | AM54: X
L55: 6 | M55: National: | N55: HP Junior (1-2 events) | O55: X | P55: X | Q55: X | R55: X | S55: X | T55: X | U55: X | V55: X | AA55: X | AB55: X | AC55: X | AD55: X | AE55: X | AF55: X | AG55: X | AH55: X | AI55: X | AJ55: X | AK55: X | AL55: X | AM55: X
L56: 6 | M56: National: | N56: HP Senior (1-2 events) | O56: X | P56: X | Q56: X | R56: X | S56: X | T56: X | U56: X | V56: X | W56: X | X56: X
L57: 99 | M57: ~ | N57: ~
L60: Code for | O60: ** Ages shown are as of end of previous year (aka the start of this year). | U60: Probably not needed, no sublevels.
J61: MAG_PopUpList_Categories | L61: Fees Level | N61: MAG_Categories | O61: =O33 -> 3 | P61: =P33 -> 4 | Q61: 5 | R61: 6 | S61: 7 | T61: 8 | U61: 9 | V61: 10 | W61: 11 | X61: 12 | Y61: 13 | Z61: 14 | AA61: 15 | AB61: 16 | AC61: 17 | AD61: 18 | AE61: 19 | AF61: =AM33 -> 27
J62: -- No Categories Available -- | K62: 0 | L62: 0 | M62: InterClub: | N62: Masters | O62: X | P62: X | Q62: X | R62: X | S62: X | T62: X | U62: X | V62: X | W62: X | X62: X | Y62: X | Z62: X | AA62: X
L63: 0 | M63: InterClub: | N63: Developmental | U63: X | V63: X | W63: X | X63: X | Y63: X | Z63: X | AA63: X | AB63: X | AC63: X | AD63: X | AE63: X | AF63: X
L64: 0 | M64: InterClub: | N64: JO-1 | O64: X | P64: X | Q64: X
L65: 0 | M65: InterClub: | N65: JO-2 | O65: X | P65: X | Q65: X
L66: 0 | M66: InterClub: | N66: JO-3 | O66: X | P66: X | Q66: X
L67: 0 | M67: Jr. Olympic: | N67: JO-4
L68: 0 | M68: Jr. Olympic: | N68: JO-5
L69: 0 | M69: Jr. Olympic: | N69: JO-6
L70: 0 | M70: Jr. Olympic: | N70: JO-7
L71: 0 | M71: Provincial: | N71: Prov. Level 3
L72: 0 | M72: Provincial: | N72: Prov. Level 4
L73: 0 | M73: Provincial: | N73: Prov. Level 5
L74: 0 | M74: Elite: | N74: Elite 3
L75: 0 | M75: Elite: | N75: Elite 4
L76: 0 | M76: National: | N76: Nat'l Open
L77: 0 | M77: National: | N77: Nat'l Junior (14-15)
L78: 0 | M78: National: | N78: Nat'l Junior (16-17)
L79: 0 | M79: National: | N79: Nat'l Senior (18)
L80: 0 | M80: National: | N80: Nat'l Senior (19+)
P95: IF(ISBLANK(H5),"",H5&" "&INDEX(WAG_SubCategories,J5,K5))
O96: Category & level Formula:
O97: DO NOT CHANGE; reference for future use.
O98: For use in column 'M' on the WAG sheet once the real levels are known
G103: Invited Gym Clubs…
G105: Prov. | H105: Club_Abbr | I105: Club_Name | J105: Club_City
F106: 1 | G106: SK | H106: Airborne | I106: Airborne Gymnastics Club | J106: Weyburn
F107: 2 | G107: SK | H107: Battleford | I107: Battlefords Gymnastics Club | J107: North Battleford
F108: 3 | G108: SK | H108: Calico | I108: Calico Gymnastics Club | J108: Humboldt
F109: 4 | G109: SK | H109: Can-Am | I109: Can-Am Gymnastics Club | J109: Saskatoon
F110: 5 | G110: SK | H110: Estevan | I110: Estevan Gymnastics Club | J110: Estevan
F111: 6 | G111: SK | H111: Explosion | I111: Explosion Gymnastics Club | J111: Lloydminster
F112: 7 | G112: SK | H112: Gelico | I112: Gelico Gymnastics Club | J112: Swift Current
F113: 8 | G113: SK | H113: Gym Adv | I113: Gymnastics Adventure Inc. | J113: Regina
F114: 9 | G114: SK | H114: Gymtastiks | I114: Gymtastiks Gymnastics Club | J114: Moose Jaw
F115: 10 | G115: SK | H115: Jumpers | I115: Moose Mountain Jumpers Gymnastics Club | J115: Carlyle
F116: 11 | G116: SK | H116: Leapers | I116: Lampman Leapers Gymnastics Club | J116: Lampman
F117: 12 | G117: SK | H117: Marian | I117: Marian Gymnastics Club | J117: Saskatoon
F118: 13 | G118: SK | H118: Outlook | I118: Outlook Gymnastics Club | J118: Outlook
F119: 14 | G119: SK | H119: PA Aerials | I119: Aerials Gymnastics Club | J119: Prince Albert
F120: 15 | G120: SK | H120: Perf. Bal. | I120: Perfect Balance Gymnastics Club | J120: Hudson Bay
F121: 16 | G121: SK | H121: Queen City | I121: Queen City Gymnastics Club | J121: Regina
F122: 17 | G122: SK | H122: Rose | I122: Rosetown Gymnastics Club | J122: Rosetown
F123: 18 | G123: SK | H123: Springers-SK | I123: Shamrock Springers Gymnastics Club | J123: Yorkton
F124: 19 | G124: SK | H124: Taiso | I124: Taiso Gymnastics Club | J124: Saskatoon
F125: 20 | G125: SK | H125: Tumblers | I125: Tumblers Gymnastics | J125: Martensville
F126: 21 | G126: SK | H126: Turn-a-Row | I126: Turn-A-Row Gymnastics Club | J126: Wadena
F127: 22 | G127: SK | H127: Twisters | I127: Twisters Gymnastics Club | J127: Tisdale
F128: 23 | G128: SK | H128: Zero Gravity | I128: Zero Gravity Gymnastics Club | J128: Gull Lake
G129: SK-end | H129: ______________ | I129: ~ | J129: ~
F130: 1 | G130: AB | H130: Altadore-AB | I130: Altadore Gymnastics Club | J130: Calgary, AB
F131: 2 | G131: AB | H131: Calgary Gym-AB | I131: Calgary Gymnastics Centre | J131: Calgary, AB
F132: 3 | G132: AB | H132: Capital City-AB | I132: Capital City Gymnastics Club | J132: Edmonton, AB
F133: 4 | G133: AB | H133: Champions-AB | I133: Champions Gymnastics Club | J133: Edmonton, AB
F134: 5 | G134: AB | H134: Dynamix-AB | I134: Dynamix Gymnastics Club | J134: St. Albert
F135: 6 | G135: AB | H135: Exalta-AB | I135: Exalta Gymnastics Club | J135: Red Deer, AB
F136: 7 | G136: AB | H136: Gymtastics-AB | I136: Gymtastics | J136: Calgary, AB
F137: 8 | G137: AB | H137: Mtn Shadows-AB | I137: Mountain Shadows Gymnastics Club | J137: Okotoks, AB
F138: 9 | G138: AB | H138: Ortona-AB | I138: Ortona Gymnastics Club | J138: Edmonton, AB
F139: 10 | G139: AB | H139: Phoenix-AB | I139: Phoenix Gymnastics Centre | J139: Edmonton
F140: 11 | G140: AB | H140: Salta-AB | I140: Salta Gymnastics Club | J140: Medicine Hat, AB
F141: 12 | G141: AB | H141: SG Aerials-AB | I141: Spruce Grove Aerials Gymnastics Club | J141: Spruce Grove, AB
F142: 13 | G142: AB | H142: Stampede-AB | I142: Stampede City Gymnastics Club | J142: Calgary, AB
F143: 14 | G143: AB | H143: Westwind-AB | I143: Westwind Gymnastics Club | J143: Lethbridge, AB
G144: AB-end | H144: ______________ | I144: ~ | J144: ~
F145: 1 | G145: MB | H145: Eagles-MB | I145: Eagles Gymnastics Club | J145: Brandon, MB
F146: 2 | G146: MB | H146: Keystone-MB | I146: Keystone Kips Gymnastics Club | J146: Winnipeg, MB
F147: 3 | G147: MB | H147: Panthers-MB | I147: Panthers Gymnastics Club | J147: Winnipeg, MB
F148: 4 | G148: MB | H148: Springers-MB | I148: Springers Gymnastics Club | J148: Winnipeg, MB
F149: 5 | G149: MB-end | H149: ______________ | I149: ~ | J149: ~
G150: SK | H150: Tumblers | I150: Tumblers Gymnastics | J150: Martensville

Sheet Summary
A1: Hide | E1: =Meet_Name -> 2018 Can-Am Personal Best
A2: This | E2: =Meet_Dates -> April 6-8, 2018
A3: Col. | G3: Version 2: Feb. 6
E4: MEET REGISTRATION FOR CLUBS
E6: ENTRY DEADLINE: | F6: =Entry_Deadline -> Mon. March 5, 2018
E8: When completed, email this file to: | F8: Can-Am Meet Director (Alex)
D11: Choose your club:
A12: index | D12: Abbrev. | E12: Club Name | G12: City
A13: =MATCH(D13,Club_Abbr,0) -> 11 | C13: Start here -----> | D13: Leapers | E13: =IF(ISBLANK(This_Clubs_Abbrev),"",INDEX(Lists!I106:I150,A13)) -> Lampman Leapers Gymnastics Club | G13: =IF(ISBLANK(This_Clubs_Name),"",INDEX(Club_City,A13)) -> Lampman
D14: Contact person:
D15: Name: | I15: Please make one cheque payable to …
D16: Address: | I16: =Host_Name -> Can-Am Gymnastics Club
D17: City / PC: | I17: ="Send the cheque by "&Entry_Deadline& " to:" -> Send the cheque by Mon. March 5, 2018 to:
I18: =Host_Addr & " ~ " & Host_City & " ~ " & Host_Postal_Code -> 3702 Mitchelmore Ave. ~ Saskatoon, SK ~ S7P 0B9
D19: Email: | I19: ="Phone: " & Host_Phone -> Phone: (306) 931-4031
D20: Phone # / Cell #:
I21: Registration is not complete until fees and athlete release forms have been received.
I22: ="NOTE: A late entry fee of $"&Late_Entry_Fee&" per gymnast will be charged." -> NOTE: A late entry fee of $40 per gymnast will be charged.
C23: Fee Summary… | D23: (Based on the WAG & MAG athlete sheets) | I23: Refunds will be issued only for medical reasons upon receipt of a doctor’s certificate.
C24: Discipline / Type | D24: # Gymnasts | E24: Basic Fee/Gymnast | F24: Basic Amount
A25: 1 | B25: 1 | C25: =INDEX(WAG_Levels,$A25) -> WAG: Development, Masters | D25: =INDEX(WAG_NumGymnasts,$A25) -> 0 | E25: =INDEX(WAG_Fees,$A25) -> 0 | F25: =Summ_NumGymnasts*Summ_FeesPerGymnast -> 0
A26: 2 | B26: 2 | C26: Jr. Olympic 1-2 | D26: 0 | E26: 60 | F26: 0
A27: 3 | B27: 3 | C27: Jr. Olympic 3-7 | D27: 0 | E27: 90 | F27: 0
A28: 4 | B28: 4 | C28: Jr. Olympic 8-10 | D28: 0 | E28: 90 | F28: 0
A29: 5 | B29: 5 | C29: Aspire 1-2 | D29: 0 | E29: 90 | F29: 0
A30: 6 | B30: 6 | C30: H.P. (3-4 Events) | D30: 0 | E30: 90 | F30: 0
A31: 7 | B31: 7 | C31: H.P. (1-2 Events) | D31: 0 | E31: 45 | F31: 0 | G31: =" Total # of Gymnasts: " & SUM(D26:D31) -> Total # of Gymnasts: 0
A32: 8 | B32: 8 | C32: ~ | D32: ~ | E32: ~ | F32: ~ | G32: =SUM(D25:D34) -> 0
A33: 9 | B33: 9 | C33: Registered for Western Trials | D33: 0 | E33: 20 | F33: 0
A34: 10 | B34: 9 | C34: Registered for National Trials | D34: 0 | E34: 20 | F34: 0
A35: 1 | B35: 10 | C35: =INDEX(MAG_Levels,$A35) -> MAG: Developmental | D35: =INDEX(MAG_NumGymnasts,$A35) -> 0 | E35: =INDEX(MAG_Fees,$A35) -> 0 | F35: 0
A36: 2 | B36: 11 | C36: MAG: Interclub: JO-1, JO-2 | D36: 0 | E36: 0 | F36: 0
A37: 3 | B37: 12 | C37: MAG: Prov: JO 3-4 | D37: 0 | E37: 0 | F37: 0
A38: 4 | B38: 13 | C38: MAG: Prov: P4 - P5 | D38: 0 | E38: 0 | F38: 0
A39: 5 | B39: 14 | C39: MAG: Nat'l: Elite 3-4 | D39: 0 | E39: 0 | F39: 0 | G39: =SUM(D35:D40) -> 0
A40: 6 | B40: 15 | C40: MAG: Nat'l: Open, Jr, Sr | D40: 0 | E40: 0 | F40: 0 | G40: =G39&" MAG Gymnast"& IF(G39=1,"","s") &" ($"&SUM(F35:F40)&")" -> 0 MAG Gymnasts ($0)
B41: 12 | E41: Total Fees: | F41: =SUM(F25:F40) -> 0

Sheet WAG Gymnasts
B1: =Meet_Name -> 2018 Can-Am Personal Best | D1: CLUB REGISTRATIONS - WAG GYMNASTS | K1: Hide Col. | L1: Hide Col. | M1: Hide Col. | Q1: Hide Col.
B2: =Meet_Dates -> April 6-8, 2018 | C2: Club: | D2: =This_Clubs_FullName -> Lampman Leapers Gymnastics Club
B3: xx
B4: First Name | C4: Last Name | D4: Club | E4: City | F4: Year Born | G4: Month Born | H4: Category & age group | I4: Category | J4: ="Age at start of "&Year_of_Meet -> Age at start of 2018 | K4: Category - Index 1 | L4: YOB - Index 2 | M4: Category Fee Code | N4: Western Trials | O4: Nat'l Trials | P4: Comment | Q4: Age sub-cat
A5: 1 | D5: =IF(ISBLANK(C5),"",This_Clubs_Abbrev) ->  | E5: =IF(ISBLANK(C5),"",This_Clubs_City) ->  | H5: =IF(ISBLANK(I5),"",I5&IF(Q5=0,""," ("&Q5&")")) ->  | J5: =IF(F5=0,0,Year_of_Meet-F5-1) -> 0 | K5: =IF(ISBLANK(I5),0,MATCH(I5,WAG_Categories,0)) -> 0 | L5: =IF(F5=0,0,MATCH(F5,List_of_BirthYears,0)) -> 0 | M5: =IF(K5=0,0,INDEX(WAG_Fee_Codes,K5)) -> 0 | N5: No | O5: No | Q5: =IF(K5+L5=0,0,INDEX(WAG_SubCategories,K5,L5)) -> 0
A6: 2 | J6: 0 | K6: 0 | L6: 0 | M6: 0 | N6: No | O6: No | Q6: 0
A7: 3 | J7: 0 | K7: 0 | L7: 0 | M7: 0 | N7: No | O7: No | Q7: 0
A8: 4 | J8: 0 | K8: 0 | L8: 0 | M8: 0 | N8: No | O8: No | Q8: 0
A9: 5 | J9: 0 | K9: 0 | L9: 0 | M9: 0 | N9: No | O9: No | Q9: 0
A10: 6 | J10: 0 | K10: 0 | L10: 0 | M10: 0 | N10: No | O10: No | Q10: 0
A11: 7 | J11: 0 | K11: 0 | L11: 0 | M11: 0 | N11: No | O11: No | Q11: 0
A12: 8 | J12: 0 | K12: 0 | L12: 0 | M12: 0 | N12: No | O12: No | Q12: 0
A13: 9 | J13: 0 | K13: 0 | L13: 0 | M13: 0 | N13: No | O13: No | Q13: 0
A14: 10 | J14: 0 | K14: 0 | L14: 0 | M14: 0 | N14: No | O14: No | Q14: 0
A15: 11 | J15: 0 | K15: 0 | L15: 0 | M15: 0 | N15: No | O15: No | Q15: 0
A16: 12 | J16: 0 | K16: 0 | L16: 0 | M16: 0 | N16: No | O16: No | Q16: 0
A17: 13 | J17: 0 | K17: 0 | L17: 0 | M17: 0 | N17: No | O17: No | Q17: 0
A18: 14 | J18: 0 | K18: 0 | L18: 0 | M18: 0 | N18: No | O18: No | Q18: 0
A19: 15 | J19: 0 | K19: 0 | L19: 0 | M19: 0 | N19: No | O19: No | Q19: 0
A20: 16 | J20: 0 | K20: 0 | L20: 0 | M20: 0 | N20: No | O20: No | Q20: 0
A21: 17 | J21: 0 | K21: 0 | L21: 0 | M21: 0 | N21: No | O21: No | Q21: 0
A22: 18 | J22: 0 | K22: 0 | L22: 0 | M22: 0 | N22: No | O22: No | Q22: 0
A23: 19 | J23: 0 | K23: 0 | L23: 0 | M23: 0 | N23: No | O23: No | Q23: 0
A24: 20 | J24: 0 | K24: 0 | L24: 0 | M24: 0 | N24: No | O24: No | Q24: 0
A25: 21 | J25: 0 | K25: 0 | L25: 0 | M25: 0 | N25: No | O25: No | Q25: 0
A26: 22 | J26: 0 | K26: 0 | L26: 0 | M26: 0 | N26: No | O26: No | Q26: 0
A27: 23 | J27: 0 | K27: 0 | L27: 0 | M27: 0 | N27: No | O27: No | Q27: 0
A28: 24 | J28: 0 | K28: 0 | L28: 0 | M28: 0 | N28: No | O28: No | Q28: 0
A29: 25 | J29: 0 | K29: 0 | L29: 0 | M29: 0 | N29: No | O29: No | Q29: 0
A30: 26 | J30: 0 | K30: 0 | L30: 0 | M30: 0 | N30: No | O30: No | Q30: 0
A31: 27 | J31: 0 | K31: 0 | L31: 0 | M31: 0 | N31: No | O31: No | Q31: 0
A32: 28 | J32: 0 | K32: 0 | L32: 0 | M32: 0 | N32: No | O32: No | Q32: 0
A33: 29 | J33: 0 | K33: 0 | L33: 0 | M33: 0 | N33: No | O33: No | Q33: 0
A34: 30 | J34: 0 | K34: 0 | L34: 0 | M34: 0 | N34: No | O34: No | Q34: 0
A35: 31 | J35: 0 | K35: 0 | L35: 0 | M35: 0 | N35: No | O35: No | Q35: 0
A36: 32 | J36: 0 | K36: 0 | L36: 0 | M36: 0 | N36: No | O36: No | Q36: 0
A37: 33 | D37: =IF(ISBLANK(C37),"",This_Clubs_Abbrev) ->  | E37: =IF(ISBLANK(C37),"",This_Clubs_City) ->  | H37: =IF(ISBLANK(I37),"",I37&IF(Q37=0,""," ("&Q37&")")) ->  | J37: =IF(F37=0,0,Year_of_Meet-F37-1) -> 0 | K37: =IF(ISBLANK(I37),0,MATCH(I37,WAG_Categories,0)) -> 0 | L37: =IF(F37=0,0,MATCH(F37,List_of_BirthYears,0)) -> 0 | M37: =IF(K37=0,0,INDEX(WAG_Fee_Codes,K37)) -> 0 | N37: No | O37: No | Q37: =IF(K37+L37=0,0,INDEX(WAG_SubCategories,K37,L37)) -> 0
A38: 34 | J38: 0 | K38: 0 | L38: 0 | M38: 0 | N38: No | O38: No | Q38: 0
A39: 35 | J39: 0 | K39: 0 | L39: 0 | M39: 0 | N39: No | O39: No | Q39: 0
A40: 36 | J40: 0 | K40: 0 | L40: 0 | M40: 0 | N40: No | O40: No | Q40: 0
A41: 37 | J41: 0 | K41: 0 | L41: 0 | M41: 0 | N41: No | O41: No | Q41: 0
A42: 38 | J42: 0 | K42: 0 | L42: 0 | M42: 0 | N42: No | O42: No | Q42: 0
A43: 39 | J43: 0 | K43: 0 | L43: 0 | M43: 0 | N43: No | O43: No | Q43: 0
A44: 40 | J44: 0 | K44: 0 | L44: 0 | M44: 0 | N44: No | O44: No | Q44: 0
A45: 41 | J45: 0 | K45: 0 | L45: 0 | M45: 0 | N45: No | O45: No | Q45: 0
A46: 42 | J46: 0 | K46: 0 | L46: 0 | M46: 0 | N46: No | O46: No | Q46: 0
A47: 43 | J47: 0 | K47: 0 | L47: 0 | M47: 0 | N47: No | O47: No | Q47: 0
A48: 44 | J48: 0 | K48: 0 | L48: 0 | M48: 0 | N48: No | O48: No | Q48: 0
A49: 45 | J49: 0 | K49: 0 | L49: 0 | M49: 0 | N49: No | O49: No | Q49: 0
A50: 46 | J50: 0 | K50: 0 | L50: 0 | M50: 0 | N50: No | O50: No | Q50: 0
A51: 47 | J51: 0 | K51: 0 | L51: 0 | M51: 0 | N51: No | O51: No | Q51: 0
A52: 48 | J52: 0 | K52: 0 | L52: 0 | M52: 0 | N52: No | O52: No | Q52: 0
A53: 49 | J53: 0 | K53: 0 | L53: 0 | M53: 0 | N53: No | O53: No | Q53: 0
A54: 50 | J54: 0 | K54: 0 | L54: 0 | M54: 0 | N54: No | O54: No | Q54: 0
A55: 51 | J55: 0 | K55: 0 | L55: 0 | M55: 0 | N55: No | O55: No | Q55: 0
A56: 52 | J56: 0 | K56: 0 | L56: 0 | M56: 0 | N56: No | O56: No | Q56: 0
A57: 53 | J57: 0 | K57: 0 | L57: 0 | M57: 0 | N57: No | O57: No | Q57: 0
A58: 54 | J58: 0 | K58: 0 | L58: 0 | M58: 0 | N58: No | O58: No | Q58: 0
A59: 55 | J59: 0 | K59: 0 | L59: 0 | M59: 0 | N59: No | O59: No | Q59: 0
A60: 56 | J60: 0 | K60: 0 | L60: 0 | M60: 0 | N60: No | O60: No | Q60: 0
A61: 57 | J61: 0 | K61: 0 | L61: 0 | M61: 0 | N61: No | O61: No | Q61: 0
A62: 58 | J62: 0 | K62: 0 | L62: 0 | M62: 0 | N62: No | O62: No | Q62: 0
A63: 59 | J63: 0 | K63: 0 | L63: 0 | M63: 0 | N63: No | O63: No | Q63: 0
A64: 60 | J64: 0 | K64: 0 | L64: 0 | M64: 0 | N64: No | O64: No | Q64: 0

Sheet WAG Coaches & Judges
B1: =Meet_Name -> 2018 Can-Am Personal Best | M1: =Meet_Dates -> April 6-8, 2018
B2: CLUB REGISTRATION - WAG COACHES & JUDGES
B3: Indicate names of your coaches and judges and their sessions.
B5: Club: | C5: =This_Clubs_FullName -> Lampman Leapers Gymnastics Club | I5: Please mark sessions with "X" if known.
H6: (Sessions & Schedule TBA)
C7: Please spell names correctly. | F7: Session: | G7: 1 | H7: =G7+1 -> 2 | I7: =H7+1 -> 3 | J7: 4 | K7: 5 | L7: 6 | M7: 7
D8: NCCP Level | G8: =IF(ISBLANK($G$7),"","Fri") -> Fri | H8: Sat | I8: Sat | J8: Sat | K8: Sun | L8: Sun | M8: Sun
C9: COACHES | G9: =IF(ISBLANK($G$7),"","Eve.") -> Eve. | H9: Morn. | I9: Aft. | J9: Eve. | K9: Morn. | L9: Noon | M9: Afternoon
B10: 1
B11: 2
B12: 3
B13: 4
B14: 5
B15: 6
B16: 7
B17: 8
B18: 9
B19: 10
B20: 11
B21: 12
B22: 13
B23: 14
B24: 15
F28: Session: | G28: =IF(ISBLANK($G$7),"",$G$7) -> 1 | H28: =H7 -> 2 | I28: 3 | J28: 4 | K28: 5 | L28: 6 | M28: 7
G29: =G8 -> Fri | H29: =H8 -> Sat | I29: Sat | J29: Sat | K29: Sun | L29: Sun | M29: Sun
C30: JUDGES | D30: Level | G30: =G9 -> Eve. | H30: =H9 -> Morn. | I30: Aft. | J30: Eve. | K30: Morn. | L30: Noon | M30: Afternoon
B31: 1
B32: 2
B33: 3
B34: 4
B35: 5
B36: 6
B37: 7
B38: 8
B39: 9
B40: 10
B41: 11
B42: 12
B43: 13
B44: 14
B45: 15

Sheet MAG Gymnasts (hidden)
B1: =Meet_Name -> 2018 Can-Am Personal Best | D1: CLUB REGISTRATION - MEN
B2: =Meet_Dates -> April 6-8, 2018 | C2: Club: | D2: =This_Clubs_FullName -> Lampman Leapers Gymnastics Club
K3: Used to get full cat name (WAG) | N3: Cat.
B4: First Name | C4: Last Name | D4: Club | E4: City | F4: Birth Year | G4: Birth Month | H4: Category | I4: Category | J4: ="Age in"&CHAR(13)&Year_of_Meet -> Age in 2018 | K4: Cat: Index 1 | L4: Age: Index 2 | N4: Fee Code for level | O4: misc | P4: Comment | Q4: YOB & Month | R4: Age in years | S4: Birth Month | T4: Years (YY) | U4: 12-M | V4: Months (MM) | W4: Age for sorting
A5: 7 | D5: =IF(ISBLANK(C5),"",This_Clubs_Name) ->  | E5: =IF(ISBLANK(C5),"",Summary!$G$13) ->  | H5: =T(I5) ->  | J5: =IF(F5=0,0,Year_of_Meet-F5) -> 0 | K5: =IF(ISBLANK(I5),"",MATCH(I5,MAG_Categories,0)) ->  | L5: =IF(R5=0,"",MATCH(R5,MAG_Age_Range,0)) ->  | N5: No | Q5: =(F5)+ (S5/100) -> 0 | R5: =IF(F5=0,0,Year_of_Meet-F5) -> 0 | S5: =IF(G5="",0,MATCH(G5,List_of_Months,0)) -> 0 | T5: =IF(R5<10,"0","")&R5 -> 00 | U5: =12-S5 -> 12 | V5: =IF(12-U5<10,"0","")&(12-U5) -> 00 | W5: =R5+(S5/100) -> 0
A6: 1 | E6: =IF(ISBLANK(C6),"",Summary!$G$13) ->  | J6: 0 | N6: No | Q6: 0 | R6: 0 | S6: 0 | T6: 00 | U6: 12 | V6: 00 | W6: 0
A7: 4 | E7: =IF(ISBLANK(C7),"",Summary!$G$13) ->  | J7: 0 | N7: No | Q7: 0 | R7: 0 | S7: 0 | T7: 00 | U7: 12 | V7: 00 | W7: 0
A8: 2 | E8: =IF(ISBLANK(C8),"",Summary!$G$13) ->  | J8: 0 | N8: No | Q8: 0 | R8: 0 | S8: 0 | T8: 00 | U8: 12 | V8: 00 | W8: 0
A9: 6 | E9: =IF(ISBLANK(C9),"",Summary!$G$13) ->  | J9: 0 | N9: No | Q9: 0 | R9: 0 | S9: 0 | T9: 00 | U9: 12 | V9: 00 | W9: 0
A10: 5 | E10: =IF(ISBLANK(C10),"",Summary!$G$13) ->  | J10: 0 | N10: No | Q10: 0 | R10: 0 | S10: 0 | T10: 00 | U10: 12 | V10: 00 | W10: 0
A11: 3 | E11: =IF(ISBLANK(C11),"",Summary!$G$13) ->  | J11: 0 | N11: No | Q11: 0 | R11: 0 | S11: 0 | T11: 00 | U11: 12 | V11: 00 | W11: 0
A12: 8 | E12: =IF(ISBLANK(C12),"",Summary!$G$13) ->  | J12: 0 | N12: No | Q12: 0 | R12: 0 | S12: 0 | T12: 00 | U12: 12 | V12: 00 | W12: 0
A13: 9 | E13: =IF(ISBLANK(C13),"",Summary!$G$13) ->  | J13: 0 | N13: No | Q13: 0 | R13: 0 | S13: 0 | T13: 00 | U13: 12 | V13: 00 | W13: 0
A14: 10 | E14: =IF(ISBLANK(C14),"",Summary!$G$13) ->  | J14: 0 | N14: No | Q14: 0 | R14: 0 | S14: 0 | T14: 00 | U14: 12 | V14: 00 | W14: 0
A15: 11 | E15: =IF(ISBLANK(C15),"",Summary!$G$13) ->  | J15: 0 | N15: No | Q15: 0 | R15: 0 | S15: 0 | T15: 00 | U15: 12 | V15: 00 | W15: 0
A16: 12 | E16: =IF(ISBLANK(C16),"",Summary!$G$13) ->  | J16: 0 | N16: No | Q16: 0 | R16: 0 | S16: 0 | T16: 00 | U16: 12 | V16: 00 | W16: 0
A17: 13 | E17: =IF(ISBLANK(C17),"",Summary!$G$13) ->  | J17: 0 | N17: No | Q17: 0 | R17: 0 | S17: 0 | T17: 00 | U17: 12 | V17: 00 | W17: 0
A18: 14 | E18: =IF(ISBLANK(C18),"",Summary!$G$13) ->  | J18: 0 | N18: No | Q18: 0 | R18: 0 | S18: 0 | T18: 00 | U18: 12 | V18: 00 | W18: 0
A19: 15 | E19: =IF(ISBLANK(C19),"",Summary!$G$13) ->  | J19: 0 | N19: No | Q19: 0 | R19: 0 | S19: 0 | T19: 00 | U19: 12 | V19: 00 | W19: 0
A20: 16 | E20: =IF(ISBLANK(C20),"",Summary!$G$13) ->  | J20: 0 | N20: No | Q20: 0 | R20: 0 | S20: 0 | T20: 00 | U20: 12 | V20: 00 | W20: 0
A21: 17 | E21: =IF(ISBLANK(C21),"",Summary!$G$13) ->  | J21: 0 | N21: No | Q21: 0 | R21: 0 | S21: 0 | T21: 00 | U21: 12 | V21: 00 | W21: 0
A22: 18 | E22: =IF(ISBLANK(C22),"",Summary!$G$13) ->  | J22: 0 | N22: No | Q22: 0 | R22: 0 | S22: 0 | T22: 00 | U22: 12 | V22: 00 | W22: 0
A23: 19 | E23: =IF(ISBLANK(C23),"",Summary!$G$13) ->  | J23: 0 | N23: No | Q23: 0 | R23: 0 | S23: 0 | T23: 00 | U23: 12 | V23: 00 | W23: 0
A24: 20 | E24: =IF(ISBLANK(C24),"",Summary!$G$13) ->  | J24: 0 | N24: No | Q24: 0 | R24: 0 | S24: 0 | T24: 00 | U24: 12 | V24: 00 | W24: 0
A25: 21 | E25: =IF(ISBLANK(C25),"",Summary!$G$13) ->  | J25: 0 | N25: No | Q25: 0 | R25: 0 | S25: 0 | T25: 00 | U25: 12 | V25: 00 | W25: 0
A26: 22 | E26: =IF(ISBLANK(C26),"",Summary!$G$13) ->  | J26: 0 | N26: No | Q26: 0 | R26: 0 | S26: 0 | T26: 00 | U26: 12 | V26: 00 | W26: 0
A27: 23 | E27: =IF(ISBLANK(C27),"",Summary!$G$13) ->  | J27: 0 | N27: No | Q27: 0 | R27: 0 | S27: 0 | T27: 00 | U27: 12 | V27: 00 | W27: 0
A28: 24 | E28: =IF(ISBLANK(C28),"",Summary!$G$13) ->  | J28: 0 | N28: No | Q28: 0 | R28: 0 | S28: 0 | T28: 00 | U28: 12 | V28: 00 | W28: 0
A29: 25 | E29: =IF(ISBLANK(C29),"",Summary!$G$13) ->  | J29: 0 | N29: No | Q29: 0 | R29: 0 | S29: 0 | T29: 00 | U29: 12 | V29: 00 | W29: 0
A30: 26 | E30: =IF(ISBLANK(C30),"",Summary!$G$13) ->  | J30: 0 | N30: No | Q30: 0 | R30: 0 | S30: 0 | T30: 00 | U30: 12 | V30: 00 | W30: 0
A31: 27 | E31: =IF(ISBLANK(C31),"",Summary!$G$13) ->  | J31: 0 | N31: No | Q31: 0 | R31: 0 | S31: 0 | T31: 00 | U31: 12 | V31: 00 | W31: 0
A32: 28 | E32: =IF(ISBLANK(C32),"",Summary!$G$13) ->  | J32: 0 | N32: No | Q32: 0 | R32: 0 | S32: 0 | T32: 00 | U32: 12 | V32: 00 | W32: 0
A33: 29 | E33: =IF(ISBLANK(C33),"",Summary!$G$13) ->  | J33: 0 | N33: No | Q33: 0 | R33: 0 | S33: 0 | T33: 00 | U33: 12 | V33: 00 | W33: 0
A34: 30 | E34: =IF(ISBLANK(C34),"",Summary!$G$13) ->  | J34: 0 | N34: No | Q34: 0 | R34: 0 | S34: 0 | T34: 00 | U34: 12 | V34: 00 | W34: 0
A35: 31 | E35: =IF(ISBLANK(C35),"",Summary!$G$13) ->  | J35: 0 | N35: No | Q35: 0 | R35: 0 | S35: 0 | T35: 00 | U35: 12 | V35: 00 | W35: 0
A36: 32 | E36: =IF(ISBLANK(C36),"",Summary!$G$13) ->  | J36: 0 | N36: No | Q36: 0 | R36: 0 | S36: 0 | T36: 00 | U36: 12 | V36: 00 | W36: 0
A37: 33 | D37: =IF(ISBLANK(C37),"",This_Clubs_Name) ->  | E37: =IF(ISBLANK(C37),"",Summary!$G$13) ->  | H37: =T(I37) ->  | J37: =IF(F37=0,0,Year_of_Meet-F37) -> 0 | K37: =IF(ISBLANK(I37),"",MATCH(I37,MAG_Categories,0)) ->  | L37: =IF(R37=0,"",MATCH(R37,MAG_Age_Range,0)) ->  | N37: No | Q37: =(F37)+ (S37/100) -> 0 | R37: =IF(F37=0,0,Year_of_Meet-F37) -> 0 | S37: =IF(G37="",0,MATCH(G37,List_of_Months,0)) -> 0 | T37: =IF(R37<10,"0","")&R37 -> 00 | U37: =12-S37 -> 12 | V37: =IF(12-U37<10,"0","")&(12-U37) -> 00 | W37: =R37+(S37/100) -> 0
A38: 34 | E38: =IF(ISBLANK(C38),"",Summary!$G$13) ->  | J38: 0 | N38: No | Q38: 0 | R38: 0 | S38: 0 | T38: 00 | U38: 12 | V38: 00 | W38: 0
A39: 35 | E39: =IF(ISBLANK(C39),"",Summary!$G$13) ->  | J39: 0 | N39: No | Q39: 0 | R39: 0 | S39: 0 | T39: 00 | U39: 12 | V39: 00 | W39: 0
A40: 36 | E40: =IF(ISBLANK(C40),"",Summary!$G$13) ->  | J40: 0 | N40: No | Q40: 0 | R40: 0 | S40: 0 | T40: 00 | U40: 12 | V40: 00 | W40: 0
A41: 37 | E41: =IF(ISBLANK(C41),"",Summary!$G$13) ->  | J41: 0 | N41: No | Q41: 0 | R41: 0 | S41: 0 | T41: 00 | U41: 12 | V41: 00 | W41: 0
A42: 38 | E42: =IF(ISBLANK(C42),"",Summary!$G$13) ->  | J42: 0 | N42: No | Q42: 0 | R42: 0 | S42: 0 | T42: 00 | U42: 12 | V42: 00 | W42: 0
A43: 39 | E43: =IF(ISBLANK(C43),"",Summary!$G$13) ->  | J43: 0 | N43: No | Q43: 0 | R43: 0 | S43: 0 | T43: 00 | U43: 12 | V43: 00 | W43: 0
A44: 40 | E44: =IF(ISBLANK(C44),"",Summary!$G$13) ->  | J44: 0 | N44: No | Q44: 0 | R44: 0 | S44: 0 | T44: 00 | U44: 12 | V44: 00 | W44: 0
A45: 41 | E45: =IF(ISBLANK(C45),"",Summary!$G$13) ->  | J45: 0 | N45: No | Q45: 0 | R45: 0 | S45: 0 | T45: 00 | U45: 12 | V45: 00 | W45: 0
A46: 42 | E46: =IF(ISBLANK(C46),"",Summary!$G$13) ->  | J46: 0 | N46: No | Q46: 0 | R46: 0 | S46: 0 | T46: 00 | U46: 12 | V46: 00 | W46: 0
A47: 43 | E47: =IF(ISBLANK(C47),"",Summary!$G$13) ->  | J47: 0 | N47: No | Q47: 0 | R47: 0 | S47: 0 | T47: 00 | U47: 12 | V47: 00 | W47: 0
A48: 44 | E48: =IF(ISBLANK(C48),"",Summary!$G$13) ->  | J48: 0 | N48: No | Q48: 0 | R48: 0 | S48: 0 | T48: 00 | U48: 12 | V48: 00 | W48: 0
A49: 45 | E49: =IF(ISBLANK(C49),"",Summary!$G$13) ->  | J49: 0 | N49: No | Q49: 0 | R49: 0 | S49: 0 | T49: 00 | U49: 12 | V49: 00 | W49: 0
A50: 46 | E50: =IF(ISBLANK(C50),"",Summary!$G$13) ->  | J50: 0 | N50: No | Q50: 0 | R50: 0 | S50: 0 | T50: 00 | U50: 12 | V50: 00 | W50: 0
A51: 47 | E51: =IF(ISBLANK(C51),"",Summary!$G$13) ->  | J51: 0 | N51: No | Q51: 0 | R51: 0 | S51: 0 | T51: 00 | U51: 12 | V51: 00 | W51: 0
A52: 48 | E52: =IF(ISBLANK(C52),"",Summary!$G$13) ->  | J52: 0 | N52: No | Q52: 0 | R52: 0 | S52: 0 | T52: 00 | U52: 12 | V52: 00 | W52: 0
A53: 49 | E53: =IF(ISBLANK(C53),"",Summary!$G$13) ->  | J53: 0 | N53: No | Q53: 0 | R53: 0 | S53: 0 | T53: 00 | U53: 12 | V53: 00 | W53: 0
A54: 50 | E54: =IF(ISBLANK(C54),"",Summary!$G$13) ->  | J54: 0 | N54: No | Q54: 0 | R54: 0 | S54: 0 | T54: 00 | U54: 12 | V54: 00 | W54: 0
A55: 51 | E55: =IF(ISBLANK(C55),"",Summary!$G$13) ->  | J55: 0 | N55: No | Q55: 0 | R55: 0 | S55: 0 | T55: 00 | U55: 12 | V55: 00 | W55: 0
A56: 52 | E56: =IF(ISBLANK(C56),"",Summary!$G$13) ->  | J56: 0 | N56: No | Q56: 0 | R56: 0 | S56: 0 | T56: 00 | U56: 12 | V56: 00 | W56: 0
A57: 53 | E57: =IF(ISBLANK(C57),"",Summary!$G$13) ->  | J57: 0 | N57: No | Q57: 0 | R57: 0 | S57: 0 | T57: 00 | U57: 12 | V57: 00 | W57: 0
A58: 54 | E58: =IF(ISBLANK(C58),"",Summary!$G$13) ->  | J58: 0 | N58: No | Q58: 0 | R58: 0 | S58: 0 | T58: 00 | U58: 12 | V58: 00 | W58: 0
A59: 55 | E59: =IF(ISBLANK(C59),"",Summary!$G$13) ->  | J59: 0 | N59: No | Q59: 0 | R59: 0 | S59: 0 | T59: 00 | U59: 12 | V59: 00 | W59: 0
A60: 56 | E60: =IF(ISBLANK(C60),"",Summary!$G$13) ->  | J60: 0 | N60: No | Q60: 0 | R60: 0 | S60: 0 | T60: 00 | U60: 12 | V60: 00 | W60: 0
A61: 57 | E61: =IF(ISBLANK(C61),"",Summary!$G$13) ->  | J61: 0 | N61: No | Q61: 0 | R61: 0 | S61: 0 | T61: 00 | U61: 12 | V61: 00 | W61: 0
A62: 58 | E62: =IF(ISBLANK(C62),"",Summary!$G$13) ->  | J62: 0 | N62: No | Q62: 0 | R62: 0 | S62: 0 | T62: 00 | U62: 12 | V62: 00 | W62: 0
A63: 59 | E63: =IF(ISBLANK(C63),"",Summary!$G$13) ->  | J63: 0 | N63: No | Q63: 0 | R63: 0 | S63: 0 | T63: 00 | U63: 12 | V63: 00 | W63: 0
A64: 60 | E64: =IF(ISBLANK(C64),"",Summary!$G$13) ->  | J64: 0 | N64: No | Q64: 0 | R64: 0 | S64: 0 | T64: 00 | U64: 12 | V64: 00 | W64: 0

Sheet MAG Coaches & Judges (hidden)
B1: =Meet_Name -> 2018 Can-Am Personal Best | L1: =Meet_Dates -> April 6-8, 2018
B2: CLUB REGISTRATION - WAG COACHES & JUDGES
B3: Indicate names of your coaches and judges and their sessions.
B5: Club: | C5: =This_Clubs_FullName -> Lampman Leapers Gymnastics Club | I5: Please mark sessions with "X" if known.
H6: (Sessions & Schedule TBA)
C7: Please spell names correctly. | F7: Session: | G7: 1 | H7: =G7+1 -> 2 | I7: =H7+1 -> 3 | J7: 4 | K7: 5 | L7: 6 | M7: 7
D8: NCCP Level | G8: =IF(ISBLANK($G$7),"","Fri") -> Fri | H8: Sat | I8: Sat | J8: Sat | K8: Sun | L8: Sun | M8: Sun
C9: COACHES | G9: =IF(ISBLANK($G$7),"","Eve.") -> Eve. | H9: Morn. | I9: Aft. | J9: Eve. | K9: Morn. | L9: Aft. | M9: Eve.
B10: 1
B11: 2
B12: 3
B13: 4
B14: 5
B15: 6
B16: 7
B17: 8
B18: 9
B19: 10
B20: 11
B21: 12
B22: 13
B23: 14
B24: 15
F28: Session: | G28: 1 | H28: =G28+1 -> 2 | I28: =H28+1 -> 3 | J28: =I28+1 -> 4 | K28: =J28+1 -> 5 | L28: =K28+1 -> 6 | M28: =L28+1 -> 7
G29: =IF(ISBLANK($G$7),"","Fri") -> Fri | H29: Sat | I29: Sat | J29: Sat | K29: Sun | L29: Sun | M29: Sun
C30: JUDGES | D30: Level | G30: =IF(ISBLANK($G$7),"","Eve.") -> Eve. | H30: Morn. | I30: Aft. | J30: Eve. | K30: Morn. | L30: Aft. | M30: Eve.
B31: 1
B32: 2
B33: 3
B34: 4
B35: 5
B36: 6
B37: 7
B38: 8
B39: 9
B40: 10
B41: 11
B42: 12
B43: 13
B44: 14
B45: 15

Sheet Pswd (hidden)
B4: Password for all sheets:
B6: GymScore-Registration
B10: No Password needed - 2018
